Cogmind - Beta 16.1 @@@ ROGUE MODE // 2026.04.05 @ 09:55:12 Player: ae Result: Destroyed by H-66 Slayer with Heavy Assault Rifle Performance ------------- Evolutions (4) 2000 Regions Visited (4) 800 Robots Destroyed (24) 120 Value Destroyed (747) 747 Prototype IDs (11) 220 Alien Tech Used (0) 0 Bonus (800) 800 TOTAL SCORE: 4687 Bonus ------- Registered with UFD 300 Met Optimus in HQ 500 Cogmind --------- Core Integrity 0/850 Matter 199/300 Energy 99/100 System Corruption 3% Temperature Cool (0) Movement Core (50) Location -6/Factory Parts ------- > --- POWER (1) -------- (None) > --- PROPULSION (6) --- (None) > --- UTILITY (6) ------ Machine Analyzer Enhanced Optical Array Advanced Signal Interpreter Hacking Suite > --- WEAPON (2) ------- (None) > --- INVENTORY (5) ---- High-powered Shotgun Heavy Machine Gun Heavy Flak Cannon Great Maul Peak State ------------ > --- POWER ------------ (None) > --- PROPULSION ------- Carbon-fiber Leg Carbon-fiber Leg Carbon-fiber Leg Cooled Cesium-ion Thruster > --- UTILITY ---------- Improved Heat Sink Machine Analyzer Enhanced Optical Array Advanced Signal Interpreter Hacking Suite > --- WEAPON ----------- High-powered Shotgun Advanced EMP Blaster > --- INVENTORY -------- Heavy Machine Gun Heavy Flak Cannon Heavy Rocket Launcher Long-range Missile Launcher Great Maul [Rating: 43] Favorites ----------- Power Light Ion Engine Engine Light Ion Engine Power Core Light Fission Core Propulsion Light Treads Treads Light Treads Leg Carbon-fiber Leg Hover Unit Gravmag System Flight Unit Flight Unit Utility Hacking Suite Device Seismic Detector Storage Small Storage Unit Processor Enhanced Optical Array Hackware Hacking Suite Protection Layered Medium Armor Plating Weapon Light Assault Rifle Energy Cannon Heavy Plasma Cannon Ballistic Gun Light Assault Rifle Launcher Advanced EMP Blaster Impact Weapon Great Maul Build | -11 -10 -10 -9 -6 ------- Run | Yrd Mat Sub Scr Fac Slots Evolved 8 | . . . . 8 Power . | . . . . . Propulsion 4 | . . . . 4 Utility 4 | . . . . 4 Weapon . | . . . . . Parts Attached 42 | 7 . . 3 32 Power 3 | 1 . . . 2 Engine 2 | 1 . . . 1 Core 1 | . . . . 1 Reactor . | . . . . . Propulsion 11 | 2 . . 2 7 Treads 2 | 2 . . . . Leg 3 | . . . . 3 Wheel . | . . . . . Hover 3 | . . . . 3 Flight 3 | . . . 2 1 Utility 18 | 2 . . 1 15 Device 6 | 1 . . . 5 Storage 2 | 1 . . . 1 Processor 4 | . . . . 4 Hackware 4 | . . . 1 3 Protection 2 | . . . . 2 Artifact . | . . . . . Weapon 10 | 2 . . . 8 Energy Gun . | . . . . . Energy Cannon 1 | . . . . 1 Ballistic Gun 4 | 2 . . . 2 Ballistic Cannon . | . . . . . Launcher 4 | . . . . 4 Special Weapon . | . . . . . Impact Weapon 1 | . . . . 1 Slashing Weapon . | . . . . . Piercing Weapon . | . . . . . Special Melee Weapon . | . . . . . Unidentified Prototypes 4 | . . . . 4 Parts Lost 20 | . . . . 20 Power 2 | . . . . 2 Propulsion 7 | . . . . 7 Utility 7 | . . . . 7 Weapon 4 | . . . . 4 Highest Loss Streak 8 | . . . . 8 To Critical Strikes 1 | . . . . 1 Average Backups 5 | 4 8 8 6 4 Power 1 | . 2 2 1 . Propulsion 1 | 2 4 4 2 . Utility 1 | . 1 1 1 . Weapon 2 | . 1 1 1 3 Tool/Special . | . . . . . Unused Backups 12 | . . . 6 6 Power 1 | . . . . 1 Propulsion 4 | . . . 4 . Utility 3 | . . . 1 2 Weapon 4 | . . . 1 3 Tool/Special . | . . . . . Average Slot Usage (%) 75 | . 100 100 97 48 Engine 7 | . 14 14 12 . Treads 12 | . 28 28 22 . Hover 1 | . . . . 3 Flight 3 | . . . 4 4 Device 8 | . 14 14 12 3 Storage 8 | . 14 14 14 1 Processor 4 | . . . . 9 Hackware 7 | . . . 1 15 Ballistic Gun 16 | . 28 28 28 2 Impact Weapon 1 | . . . . 2 Peak Build Rating 43 | 7 7 7 10 43 Average Rating 14 | 5 7 7 7 23 On Entrance 6 | . 7 7 7 10 Avg Prop Armor Cover (%) 5 | . . . . 5 Naked Turns . | . . . . . Heaviest Build 17 | 11 11 11 11 17 Greatest Support 45 | 40 40 40 40 45 Greatest Overweight (x) 3 | . . . 2 3 Average Overweight (x) . | . . . . . Largest Inventory Capacity 8 | 8 8 8 8 8 Average Capacity 6 | 7 8 8 8 5 Most Carried 8 | 8 8 8 8 8 Average Carried 6 | 4 8 8 7 4 Final Capacity 8 | 8 8 8 8 5 Final Carried 8 | 8 8 8 8 4 Class Distribution -------------------- 73% | Mutant 20% | Hacker-Mutant 5% | Hacker-Scout Dominant Class ---------------- Mutant | -10/Materials Mutant | -10/Subcaves Mutant | -9/Scraptown Hacker-Mutant | -6/Factory Resources | -11 -10 -10 -9 -6 ----------- Run | Yrd Mat Sub Scr Fac Matter Collected 846 | 278 . . 24 544 Remotely . | . . . . . Salvage Created 792 | 87 . . . 705 Parts 45 | 5 . . . 40 Haulers Intercepted 1 | . . . . 1 Recyclers Shooed . | . . . . . Parts Field Recycled . | . . . . . Retrieved Matter . | . . . . . Parts Self-Destructed . | . . . . . Prevented . | . . . . . Parts Restored . | . . . . . Kills | -11 -10 -10 -9 -6 ------- Run | Yrd Mat Sub Scr Fac Combat Hostiles Destroyed 11 | . . . . 11 Melee 2 | . . . . 2 Guns 2 | . . . . 2 AOE 5 | . . . . 5 Classes Destroyed 13 | 2 . . . 11 Worker 1 | . . . . 1 Builder 5 | . . . . 5 Tunneler 2 | 1 . . . 1 Hauler 1 | . . . . 1 Recycler 2 | 1 . . . 1 Mechanic 1 | . . . . 1 Watcher 1 | . . . . 1 Saboteur 1 | . . . . 1 Grunt 2 | . . . . 2 Sentry 2 | . . . . 2 Specialist 1 | . . . . 1 Hunter 3 | . . . . 3 Programmer 2 | . . . . 2 Best Kill Streak 8 | 2 . . . 8 Combat Bots Only 3 | . . . . 3 Max Kills in Single Turn 7 | 1 . . . 7 Gunslinging . | . . . . . Exploded 2 | . . . . 2 Melee 1 | . . . . 1 Uniques/NPCs Destroyed . | . . . . . Combat | -11 -10 -10 -9 -6 -------- Run | Yrd Mat Sub Scr Fac Hostile Shots Fired 248 | . . . . 248 Missed 104 | . . . . 104 Hits 144 | . . . . 144 Projectile 144 | . . . . 144 Critical Strikes 6 | . . . . 6 Damage Taken 2324 | . 9 . . 2315 Core 858 | . . . . 858 Absorbed by Shields . | . . . . . Core Remaining (%) 100 | 100 . . 100 . Volleys Fired 42 | 6 11 . . 25 Largest 2 | 2 2 . . 2 Hottest 82 | 40 40 . . 82 Shots Fired 71 | 12 22 . . 37 Gun 57 | 12 22 . . 23 Cannon . | . . . . . Launcher 14 | . . . . 14 Special . | . . . . . Kinetic 57 | 12 22 . . 23 Thermal . | . . . . . Explosive 14 | . . . . 14 Electromagnetic . | . . . . . Robot Hit Streak 8 | 8 5 . . 5 Robot Miss Streak 2 | 2 2 . . 2 Penetration Max . | . . . . . Secondary Targets . | . . . . . Shots Hit Robots 66 | 10 13 . . 43 Core Hits 50 | 6 2 . . 42 Critical Kills 2 | . . . . 2 Critical Parts Destroyed 5 | . . . . 5 Critical Strikes 7 | . . . . 7 Smash 7 | . . . . 7 Melee Attacks 40 | . . . . 40 Impact 40 | . . . . 40 Slashing . | . . . . . Piercing . | . . . . . Sneak Attacks 4 | . . . . 4 Combat Hostiles . | . . . . . Follow-up Attacks . | . . . . . Damage Inflicted 3472 | 70 103 . . 3299 Guns 608 | 70 103 . . 435 Cannons . | . . . . . Explosions 1875 | . . . . 1875 Melee 989 | . . . . 989 Ramming . | . . . . . Kinetic 608 | 70 103 . . 435 Thermal . | . . . . . Explosive 1875 | . . . . 1875 Electromagnetic . | . . . . . Impact 989 | . . . . 989 Slashing . | . . . . . Piercing . | . . . . . Highest Corruption 3 | . . . . 3 Average Corruption 2 | . . . . 2 Corruption Purged . | . . . . . Corruption Blocked . | . . . . . Effects 14 | . . . . 14 Message Errors 5 | . . . . 5 Matter Fused 2 | . . . . 2 Energy Discharges 3 | . . . . 3 Data Loss (minor) 2 | . . . . 2 Data Loss (major) 2 | . . . . 2 Overload Shots . | . . . . . Overflow Damage 478 | . . . . 478 Projectiles . | . . . . . Explosions 108 | . . . . 108 Melee 370 | . . . . 370 Knockbacks 1 | . . . . 1 Impact 1 | . . . . 1 Kinetic . | . . . . . Secondary . | . . . . . Self-Inflicted Damage 273 | . . . . 273 Shots 4 | . . . . 4 Rammed 1 | . 1 . . . Targets Rammed 1 | . 1 . . . Kicked . | . . . . . Crushed . | . . . . . Highest Temperature 249 | . 6 . . 249 Average Temperature 95 | . 6 . . 107 Received Heat Transfer 207 | . 6 . . 201 Siege Activations . | . . . . . Martial Activations . | . . . . . Shielding Activations . | . . . . . Robots Disrupted . | . . . . . Combat Hostiles . | . . . . . Robots Corrupted 2 | . . . . 2 Combat Hostiles 2 | . . . . 2 Parts Fried 8 | . . . . 8 Impact Corruptions 10 | . . . . 10 Robots Melted . | . . . . . Combat Hostiles . | . . . . . Parts Melted . | . . . . . Heat Transferred . | . . . . . Parts Sabotaged . | . . . . . Parts Stolen . | . . . . . Parts Stripped . | . . . . . Power Chain Reactions . | . . . . . Alert | -11 -10 -10 -9 -6 ------- Run | Yrd Mat Sub Scr Fac Maximum Alert Level . | . . . . . Low Security (%) 100 | 100 100 . . 100 Level 1 . | . . . . . Level 2 . | . . . . . Level 3 . | . . . . . Level 4 . | . . . . . Level 5 . | . . . . . High Security . | . . . . . Max Security . | . . . . . Peak Influence 197 | 10 . . . 197 Initial . | . . . . . Average 35 | . . . . 41 Influence Increases 740 | 10 . . . 730 Destroy 0b10 Robot/C 220 | . . . . 220 Destroy 0b10 Robot/NC 65 | 10 . . . 55 Destroy Leader 54 | . . . . 54 Successful Hack 19 | . . . . 19 Disable Machine 45 | . . . . 45 Destroy Structure 112 | . . . . 112 Partial Spotted 90 | . . . . 90 Lose Combat Pursuer 135 | . . . . 135 Influence Decreases 543 | 10 . . . 533 Time Decay 381 | 10 . . . 371 Lost Part 162 | . . . . 162 Squads Dispatched 10 | . . . . 10 Investigation 4 | . . . . 4 Extermination 2 | . . . . 2 Reinforcement 4 | . . . . 4 Assault . | . . . . . Garrison . | . . . . . Intercept . | . . . . . Searches Triggered . | . . . . . Construction Impeded 3 | . . . . 3 Haulers Reinforced 1 | . . . . 1 Active Scanning Responses . | . . . . . Cargo Convoy Interrupts 1 | . . . . 1 Stealth | -11 -10 -10 -9 -6 --------- Run | Yrd Mat Sub Scr Fac Distress Signals . | . . . . . Communications Jammed . | . . . . . Distress Signals . | . . . . . Times Spotted 36 | . 1 . . 35 Peak Tracking Total 12 | . 1 . . 12 Tactical Retreats 3 | . . . . 3 Traps | -11 -10 -10 -9 -6 ------- Run | Yrd Mat Sub Scr Fac Traps Triggered 4 | . . . . 4 Indirectly . | . . . . . Trap Hack Attempts . | . . . . . Triggered . | . . . . . Disarmed . | . . . . . Reprogrammed . | . . . . . Reused . | . . . . . Traps Extracted . | . . . . . Installed . | . . . . . Triggered . | . . . . . Most Traps Carried 2 | . . . 2 . Machines | -11 -10 -10 -9 -6 ---------- Run | Yrd Mat Sub Scr Fac Machines Disabled 3 | . . . . 3 Max in Single Turn 2 | . . . . 2 Garrison Access 1 | . . . . 1 Machines Repaired . | . . . . . Machines Dismantled . | . . . . . Machines Sabotaged . | . . . . . Overloaded Fab Kills . | . . . . . Hacking | -11 -10 -10 -9 -6 --------- Run | Yrd Mat Sub Scr Fac Machines Accessed 11 | . . . 2 9 Terminals 4 | . . . . 4 Fabricators . | . . . . . Repair Stations 1 | . . . . 1 Recycling Units 2 | . . . . 2 Scanalyzers 1 | . . . . 1 Garrison Access 1 | . . . . 1 Total Hacks 33 | . . . 13 20 Successful 26 | . . . 13 13 Failed 7 | . . . . 7 Catastrophic 1 | . . . . 1 Database Lockouts . | . . . . . Manual 9 | . . . . 9 Terminals 11 | . . . . 11 Fabricators . | . . . . . Repair Stations 2 | . . . . 2 Recycling Units 4 | . . . . 4 Scanalyzers 1 | . . . . 1 Garrison Access 2 | . . . . 2 Terminal Hacks 16 | . . . 13 3 Record 13 | . . . 13 . Branch Access Points 1 | . . . . 1 Registered Prototypes 1 | . . . . 1 Zone Layout 1 | . . . . 1 Fabricator Hacks . | . . . . . Repair Station Hacks 2 | . . . . 2 Refit 2 | . . . . 2 Recycling Unit Hacks 1 | . . . . 1 Retrieve Components 1 | . . . . 1 Scanalyzer 1 | . . . . 1 Retrieve Study 1 | . . . . 1 Garrison Access Hacks 1 | . . . . 1 Seal Access 1 | . . . . 1 Unauthorized Hacks 5 | . . . . 5 Terminals 2 | . . . . 2 Assimilate 1 | . . . . 1 Operators 1 | . . . . 1 Fabricators . | . . . . . Repair Stations . | . . . . . Recycling Units 3 | . . . . 3 Recyclers 1 | . . . . 1 Fedlink 2 | . . . . 2 Scanalyzers . | . . . . . Garrison Access . | . . . . . Data Cores Recovered . | . . . . . Used . | . . . . . Hacking Detections 5 | . . . . 5 Full Trace Events 1 | . . . . 1 Feedback Events . | . . . . . Feedback Blocked . | . . . . . Robot Schematics Acquired . | . . . . . Robots Built . | . . . . . Authchips . | . . . . . Time . | . . . . . Total Robot Build Rating . | . . . . . Part Schematics Acquired . | . . . . . Parts Built . | . . . . . Authchips . | . . . . . Time . | . . . . . Total Part Build Rating . | . . . . . Part Studies Acquired 1 | . . . . 1 Parts Repaired . | . . . . . Time . | . . . . . Parts Recycled . | . . . . . Recycled Matter . | . . . . . Retrieved Matter . | . . . . . Retrieved Components . | . . . . . Parts Scanalyzed . | . . . . . Part Schematics Acquired . | . . . . . Parts Damaged . | . . . . . Bothacking | -11 -10 -10 -9 -6 ------------ Run | Yrd Mat Sub Scr Fac Used RIF Installer . | . . . . . Robots Hacked . | . . . . . Non-combat . | . . . . . Combat . | . . . . . Robot Hacks Applied . | . . . . . Relay Couplers Released . | . . . . . Fabnet Peak Effective % . | . . . . . Robots Rewired . | . . . . . Allies Hacked . | . . . . . Hacks Repelled . | . . . . . Allies | -11 -10 -10 -9 -6 -------- Run | Yrd Mat Sub Scr Fac Total Allies . | . . . . . Largest Group . | . . . . . Highest-Rated Group . | . . . . . Highest-Rated Ally . | . . . . . Initial UFD Resources 22 | . . . . 22 Total Orders . | . . . . . Ally Attacks . | . . . . . Total Damage . | . . . . . Kills . | . . . . . Allies Corrupted . | . . . . . Allies Melted . | . . . . . Intel | -11 -10 -10 -9 -6 ------- Run | Yrd Mat Sub Scr Fac Active Infowar (turns) 2549 | 20 93 257 1142 1037 Optics 691 | . . . . 691 Sensors 321 | . . . . 321 Seismic 1697 | 20 93 257 1142 185 Machine Analysis 367 | . . . . 367 Robot Analysis Total . | . . . . . Derelict Logs Recovered 1 | . . 1 . . Drone Launches . | . . . . . Drone Recoveries . | . . . . . Exploration | -11 -10 -10 -9 -6 ------------- Run | Yrd Mat Sub Scr Fac Turns Passed 3086 | 121 93 257 1262 1353 Spaces Moved 3066 | 57 34 144 970 1861 Core 101 | 3 . . . 98 Treads 859 | 54 34 144 627 . Legs 22 | . . . . 22 Wheels . | . . . . . Hover 417 | . . . . 417 Flight 1667 | . . . 343 1324 Fastest Speed 34 | 50 160 160 34 34 Average Speed 80 | 154 160 160 124 48 Slowest Speed 200 | 160 160 160 200 200 Overloaded Moves . | . . . . . Propulsion Burnouts . | . . . . . Robots Hopped 21 | . . . . 21 Potential Cave-ins . | . . . . . Cave-ins Triggered . | . . . . . Exploration Rate (%) 24 | 4 18 7 53 39 Regions Visited 4 Branch Regions 2 Pre-discovered Areas 2 | . . 1 . 1 Known Exits Taken . | . . . . . Unknown Exits Taken 4 | 1 1 1 1 . Scrap Searched 2 | . . . 2 . Spaces Dug 23 | . . . . 23 Terrain Destroyed 149 | . . . . 149 Melee 23 | . . . . 23 Projectile . | . . . . . AOE 126 | . . . . 126 Terrain Rammed . | . . . . . Walls Destroyed . | . . . . . Machines Disabled . | . . . . . Actions | -11 -10 -10 -9 -6 --------- Run | Yrd Mat Sub Scr Fac Total 3516 | 77 55 171 1029 2184 Wait 266 | . 10 28 31 197 Move 3020 | 56 33 143 969 1819 Hop 21 | . . . . 21 Pick Up 31 | 8 . . 11 12 Fast Attach 29 | 7 . . 2 20 Attach 18 | . . . 1 17 Detach 10 | . . . 1 9 Swap 4 | . . . . 4 Drop 34 | . . . 14 20 Fire 42 | 6 11 . . 25 Melee 40 | . . . . 40 Ram . | . . . . . Kick . | . . . . . Crush 1 | . 1 . . . Escape Stasis . | . . . . . Rewire . | . . . . . Trap . | . . . . . Miscellaneous . | . . . . . Route ------- -11/Scrapyard -10/Materials -10/Subcaves (discovered 2 exits: Rec / *Scr) -9/Scraptown -6/Factory (discovered 3 exits: *Fac / Low x2) History --------- Turn | Location | Event 8 | -11/Scrapyard | Discovered new exit (range 14) 122 | -11/Scrapyard | Entered Materials 123 | -10/Materials | Met a group of wandering Federalists 167 | -10/Materials | Discovered new exit (range 10) 215 | -10/Materials | Entered Subcaves 216 | -10/Subcaves | Continued accompanying wandering Federalists (5) 220 | -10/Subcaves | Identified exit to Recycling 313 | -10/Subcaves | Build established: Mutant 424 | -10/Subcaves | Learned location of Zion (-7) 424 | -10/Subcaves | Met a Zionite searching for "candidates" 457 | -10/Subcaves | Wandering Federalist uncovered a shortcut to Scraptown 472 | -10/Subcaves | Entered Scraptown 578 | -9/Scraptown | Visited UFD Registry 578 | -9/Scraptown | Registered with UFD as "Bulletnade" 592 | -9/Scraptown | Visited Shadow of the Wyrm 612 | -9/Scraptown | Visited CPS Storage 642 | -9/Scraptown | Visited TADAMA 658 | -9/Scraptown | Visited Red Mages 711 | -9/Scraptown | Visited SPCMW 720 | -9/Scraptown | Heard Great Nut preacher, LISTEN AND RECITE! 732 | -9/Scraptown | Visited Fellowship of the Rings 775 | -9/Scraptown | Visited Cave Peace 864 | -9/Scraptown | Visited DA-N13 Charitable Foundation 879 | -9/Scraptown | Found DCF Scrap (27 items) 927 | -9/Scraptown | Visited Science Guys 981 | -9/Scraptown | Visited Junk Repository 1054 | -9/Scraptown | Visited Infowarlord's Domain 1075 | -9/Scraptown | Visited Abandonware Association 1093 | -9/Scraptown | Learned abandonware demo "SHUTEYE.EXE" 1093 | -9/Scraptown | Learned abandonware demo "TRNCOAT.EXE" 1154 | -9/Scraptown | Visited LU-1G1's Boring Crew 1285 | -9/Scraptown | Visited Curators Association 1336 | -9/Scraptown | Visited Junk Repository 1398 | -9/Scraptown | Visited Supply Room 1681 | -9/Scraptown | Met Optimus 1681 | -9/Scraptown | Accepted into 0bPrime 1702 | -9/Scraptown | Discovered new exit (range 3) 1734 | -9/Scraptown | Entered Factory 1734 | -6/Factory | Evolved 8 slots: Propulsion x4, Utility x4 1853 | -6/Factory | Loaded intel: 8 recycling unit locations 1873 | -6/Factory | Identified exit to Lower Caves 1924 | -6/Factory | Learned location of Protoforge (-3) 1978 | -6/Factory | Spotted B-75 Beast 2051 | -6/Factory | Build established: Hacker-Mutant 2544 | -6/Factory | Discovered new exit (range 4) 2544 | -6/Factory | Identified exit to Factory 2587 | -6/Factory | Lost 4 parts (1n3u) 2835 | -6/Factory | Build established: Mutant 2987 | -6/Factory | Core integrity fell below 50% 3022 | -6/Factory | Lost 3 parts (2n1u) 3079 | -6/Factory | Cargo convoy interrupted 3086 | -6/Factory | Core integrity fell below 20% 3087 | -6/Factory | Destroyed by H-66 Slayer with Heavy Assault Rifle Last Messages --------------- 03084_ X-67 Chaingunner destroyed. 03084_ H-66 Slayer destroyed. 03084_ Destroyed Targeting Computer. 03084_ K-01 Serf destroyed. 03084_ Hvy. Rocket Launcher destroyed. 03084_ Destroyed Hvy. Rocket Launcher. 03084_ Destroyed Power Amplifier. 03084_ U-05 Engineer destroyed. 03084_ Destroyed Com. Wheel. 03084_ U-05 Engineer destroyed. 03084_ Destroyed Wheel. 03084_ U-05 Engineer destroyed. 03084_ Destroyed Terrain Scanner. 03084_ Penetrated by Slug. 03084_ Lrn. Missile Launcher destroyed. 03084_ Penetrated by Slug. 03084_ Carbon-fiber Leg destroyed. 03085_ Slug penetrates I-36 Angel. 03086_ K-01 Serf collects debris. 03087_ Slug penetrates H-66 Slayer. Map ----- +----------------------------------------------------+ | ??????????????????????""""???????????????????????? | | ??????????????????????""""???????????????????????? | | ??????????????????????""""???????????????????????? | | ??????????????????????""""???????????????????????? | | ??????????????????????""""???????????????????????? | | ??????????????????????""""???????????????????????? | | ??????????????????????????????????????????????#??? | | ??????????????????????????????????????????????# ?? | | ??????????????????????????????????????????????# ?? | | ?R????????????????????????????????????????????# ? | | ??????????????????????????????????????????????# ? | | ??????????????????????????????????????????????# | | ????????????????####????????????? ??? #???????# | | ???????/######### # ############# ######### | | ??????? # ## | | ??????? # """ ## | | ?????????u # """ + | | ??????????? k |%! # """ ## | | ??????????? %* u # t ## | | ##############+ ! # """ #???## | | ## [ = """ #????# | | ! ! "# p ] """ #????# | | "" ## = % %h #????#+## | | "" ## !%= h%!% """ #???????# | | "T """ ## u | hip """ #???????# | | "" """ ## % h @ """ #???????# | | "" """ ## ] [ = #???????# ##### | | ## ! ######???????# # | | ##/####### **# #???"""?# # | | ???????#######+## # i #???"""?+ / | | ????????## [ ## A #????""?# # | | ?????????##### ### u #???F""?# # """ | | ???##????????# ##?# #???"""?# # """ | | #?? #????????# #??# #???????# # """ | | ! ########## #### ######### # | | # # ^ ##### | | ?# ^ ^ ##??? | | ## """" #???? | | ## "F " #???? | | #???? | | ##+####+##############+########## ###### | | ## ?????????# #?????# # | | ?? ?????# #?????# +*"" | | ??? #?# #?????# ##### # "" | | ??? #?# #?????# #???# # """ | | ???? #?# ####### #???# # """ | | ???? #?# + #???# # """ | | ????? #?# ####+####+#######+# | | ????? #?# # # | | ?????? #?########### ! ""###### | +----------------------------------------------------+ Best States ------------- Heat Dissipation 51 Energy Generation 18 Energy Capacity 160 Matter Stores 300 Matter Capacity 400 Sight Range 22 Robot Scan Range 16 Terrain Scan Density 10 Armor Coverage 225 Evasion (%) 63 Recoil Reduction 2 Offensive Hacking 40 Item Schematics ----------------- None Robot Schematics ------------------ None Fabricated ------------ Nothing Repaired ---------- Nothing Studied --------- Flight Unit | -6/Factory | Hacked Alien Tech Used ----------------- None Achievements -------------- None Challenges ------------ None Game ------ Seed EnergyTacticalWartreads Manual? 0 Play Time 00:29:15 Cumulative 184.3 hours Start 2026.04.05 @ 09:19:34 End 2026.04.05 @ 09:55:12 Sessions 1 Manual Loads 0 Difficulty Rogue Special Mode None Game No. 117 Rogue 113 Adventurer 4 Explorer 0 Win Type - Total 23 Types 22/0/1/0/0/0/0/0/0/0 Lore% 84 Gallery% 61 Achievement% 54 Wizard Run 0 Options --------- Layout 0 ASCII 0 Keyboard 1 Movement Vi Keybinds 0 Fullscreen 0 Font 16/SmallcapsGlow Map View 76x50 Zoom Use 0% Tactical HUD 1 Map Filters NONE Filters NONE Steam 1 RUN: 523bd491-d2b7-4f64-92a3-26215cda73c0